fUSD/lending_fUSD_20240127
["ID","MTS","AMOUNT","RATE_DAILY","PERIOD"]
[312845942,1706346643705,-426.78462768,0.00027999,2]
[312845943,1706346643715,-592.45091748,0.000319,2]
[312845944,1706346643725,-714.0,0.000379,5]
[312845945,1706346643734,-19037.70615955,0.000379,3]
[312845946,1706346643746,-208625.94974322,0.000379,3]
[312845947,1706346643760,-408.59209155,0.000379,3]
[312845948,1706346643771,-1937.67286466,0.000379,3]
[312845949,1706346643782,-1991.24719166,0.000379,3]
[312845950,1706346643794,-2826.33637885,0.000379,3]
[312845953,1706346646117,-2424.24094553,0.000324,2]
[312845954,1706346646127,-940.45398287,0.000379,3]
[312845955,1706346646140,-4929.6550716,0.000379,3]
[312845956,1706346646154,-430.9683575,0.000379,3]
[312845957,1706346646173,-3977.2,0.000379,3]
[312845958,1706346646229,-2815.51457509,0.000379,3]
[312845959,1706346646417,-143319.84534712,0.000379,3]
[312845960,1706346646428,-4970.50956312,0.000379,3]
[312845961,1706346646440,-1190.46141014,0.000379,3]
[312845962,1706346646453,-294.45399304,0.00038,2]
[312845964,1706346646469,-263.75998236,0.00038,2]
[312845967,1706346646482,-2347.46759022,0.00038,2]
[312846043,1706346844539,205.0,0.00025793,7]
[312846049,1706347173776,205.0,0.00021032,2]
[312846050,1706347174022,205.0,0.00024929,7]
[312846051,1706347263768,205.0,0.00021032,2]
[312846052,1706347313242,5586.0116684,0.00021032,2]
[312846053,1706347324496,205.0,0.00021032,2]
[312846112,1706347629334,859.85446453,0.00021032,2]
[312846137,1706347745613,2461.33363829,0.00015774,2]
[312846144,1706347832417,-465.32862896,0.00024657,2]
[312846145,1706347832427,-801.42938047,0.00024657,2]
[312846146,1706347832438,-763.01283785,0.00024657,2]
[312846147,1706347832475,-401.82437314,0.00024657,2]
[312846182,1706347838170,-535.89059751,0.00024657,2]
[312846192,1706347838231,-693.75487632,0.00024657,2]
[312846194,1706347838241,-153.13,0.00024658,2]
[312846196,1706347838251,-221.69,0.00024658,2]
[312846198,1706347838260,-722.61,0.00024826,2]
[312846200,1706347838270,-735.37,0.00024861,2]
[312846203,1706347838279,-155.62368496,0.00024931,2]
[312846205,1706347838288,-836.82143873,0.00025,2]
[312846207,1706347838303,-2173.68209647,0.00025,2]
[312846209,1706347838312,-729.33,0.00025031,2]
[312846210,1706347838322,-731.18,0.00025213,2]
[312846212,1706347838331,-155.22842718,0.00025466,2]
[312846214,1706347838339,-161.88839056,0.00025466,2]
[312846215,1706347838349,-830.76,0.00025474,2]
[312846217,1706347838358,-200.0,0.00025793,2]
[312846219,1706347838367,-499.99,0.00025793,2]
[312846220,1706347838375,-726.88,0.00025855,2]
[312846222,1706347838384,-4633.85,0.00025855,2]
[312846224,1706347838397,-153.83,0.00026311,2]
[312846226,1706347838406,-250.0,0.00026374,2]
[312846227,1706347838415,-500.0,0.00026422,2]
[312846229,1706347838424,-153.05,0.0002658,2]
[312846231,1706347838434,-153.13,0.00026712,2]
[312846233,1706347838443,-163.74,0.00026733,2]
[312846234,1706347838452,-726.12,0.00026856,2]
[312846236,1706347838461,-250.0,0.00026877,2]
[312846238,1706347838471,-155.62368496,0.00027021,2]
[312846239,1706347838480,-200.0,0.0002709,2]
[312846241,1706347838488,-250.0,0.0002709,2]
[312846243,1706347838498,-733.16,0.00027162,2]
[312846245,1706347838507,-150.0,0.00027298,2]
[312846246,1706347838516,-426.26,0.00027397,2]
[312846247,1706347838525,-206.0,0.00027486,2]
[312846248,1706347838533,-208.0,0.00027486,2]
[312846249,1706347838542,-5792.15125948,0.00027527,2]
[312846250,1706347838551,-3068.39602931,0.00027528,2]
[312846251,1706347838560,-426.26,0.00027556,2]
[312846253,1706347838570,-426.26,0.00027714,2]
[312846255,1706347838578,-830.76,0.00027738,2]
[312846257,1706347838587,-537.23097535,0.00027749,2]
[312846259,1706347838599,-994.44702465,0.00027749,2]
[312846261,1706347838609,-860.0,0.00027749,2]
[312846263,1706347838618,-319.0,0.00027749,2]
[312846265,1706347838627,-1138.0,0.00027749,2]
[312846266,1706347838636,-150.0,0.00027846,2]
[312846267,1706347838645,-426.26,0.00027872,2]
[312846268,1706347838655,-153.05,0.00027965,2]
[312846269,1706347838664,-692.55054194,0.00028,2]
[312846270,1706347838673,-885.33513154,0.00028013,2]
[312846271,1706347838684,-426.26,0.0002803,2]
[312846273,1706347838694,-426.26,0.00028189,2]
[312846275,1706347838703,-171.6264,0.00028198,2]
[312846276,1706347838712,-216.44406601,0.000282,4]
[312846277,1706347838723,-867.52644647,0.000282,4]
[312846278,1706347838739,-99.56881113,0.000282,4]
[312846279,1706347838748,-504.41543892,0.00028297,2]
[312846280,1706347838757,-170.08993941,0.00028297,2]
[312846281,1706347838766,-58706.31877272,0.00028298,2]
[312846282,1706347838777,-13726.92838059,0.00028298,2]
[312846283,1706347838788,-628.5,0.00028298,2]
[312846284,1706347838799,-659.56410167,0.00028298,2]
[312846285,1706347838810,-21235.40492625,0.00028298,2]
[312846286,1706347838821,-374.16160013,0.00028298,2]
[312846287,1706347838832,-599.57014865,0.00028298,2]
[312846288,1706347838843,-688.5,0.00028298,2]
[312846289,1706347838857,-395.2299961,0.00028298,2]
[312846290,1706347838872,-5653.92625626,0.00028298,2]
[312846291,1706347838882,-11000.0,0.00028298,2]
[312846292,1706347838894,-4500.0,0.00028298,2]
[312846293,1706347838905,-360.17460302,0.00028298,2]
[312846294,1706347838916,-87377.91909636,0.00028298,2]
[312846295,1706347838935,-399.63310233,0.00028298,2]
[312846296,1706347840757,-351.45936331,0.00028298,2]
[312846297,1706347840769,-5957.42624654,0.00028298,2]
[312846298,1706347841064,-259.41654144,0.00028298,2]
[312846299,1706347841076,-558.59855038,0.00028298,2]
[312846300,1706347841088,-10371.51985383,0.00028298,2]
[312846301,1706347841100,-20391.5678241,0.00028298,2]
[312846302,1706347841112,-555.900003,0.00028298,2]
[312846303,1706347841129,-514.06877968,0.00028298,2]
[312846304,1706347841140,-8281.83619993,0.00028298,2]
[312846305,1706347841155,-33760.81543862,0.00028298,2]
[312846306,1706347841167,-917.62344642,0.00028298,2]
[312846307,1706347841178,-39595.09643686,0.00028298,2]
[312846308,1706347841190,-598.01165468,0.00028298,2]
[312846309,1706347841201,-1636.38332143,0.00028298,2]
[312846310,1706347841212,-5610.39032302,0.00028298,2]
[312846311,1706347841223,-19521.45362892,0.00028298,2]
[312846312,1706347841238,-854.44252208,0.00028298,2]
[312846313,1706347841250,-590.29,0.00028298,2]
[312846314,1706347841261,-250.5,0.00028298,2]
[312846315,1706347841273,-4331.93239948,0.00028298,2]
[312846316,1706347841282,-20772.51,0.000283,2]
[312846317,1706347841291,-426.26,0.00028347,2]
[312846318,1706347841300,-426.26,0.00028505,2]
[312846319,1706347841310,-426.26,0.00028664,2]
[312846320,1706347841319,-153.13,0.00028767,2]
[312846321,1706347841328,-426.26,0.00028822,2]
[312846322,1706347841337,-155.62368496,0.00029112,2]
[312846323,1706347841346,-1000.0,0.00029468,2]
[312846324,1706347841355,-2500.0,0.0002961,3]
[312846325,1706347841365,-183.49,0.0002961,5]
[312846326,1706347841374,-349.09789023,0.0002961,2]
[312846327,1706347841386,-0.68210977,0.0002961,2]
[312846328,1706347841395,-184.13,0.0002961,2]
[312846329,1706347841404,-3303.28688007,0.0002961,2]
[312846330,1706347841415,-1104.43424814,0.0002961,2]
[312846331,1706347841426,-4152.20169705,0.0002961,2]
[312846332,1706347841442,-381.19675957,0.0002961,2]
[312846333,1706347841453,-272.44258227,0.0002961,2]
[312846334,1706347841467,-6206.19317214,0.0002961,2]
[312846335,1706347841478,-653.4606487,0.0002961,2]
[312846336,1706347841490,-707.73887666,0.0002961,2]
[312846337,1706347841501,-824.1117,0.0002961,2]
[312846338,1706347841657,-6294.9334354,0.0002961,2]
[312846339,1706347841666,-1144.17372804,0.0003,2]
[312846340,1706347841675,-155.0,0.0003,2]
[312846341,1706347841685,-156.10206087,0.0003,4]
[312846342,1706347841694,-375.07039818,0.0003,4]
[312846343,1706347841703,-912.43344034,0.0003,4]
[312846344,1706347841712,-1823.00634161,0.0003,4]
[312846345,1706347841721,-404.4982775,0.0003,4]
[312846346,1706347841730,-19169.54175568,0.0003,4]
[312846347,1706347841740,-3540.4078158,0.0003,4]
[312846348,1706347841749,-526.88942064,0.0003,4]
[312846349,1706347841758,-585.71773266,0.0003,2]
[312846350,1706347841767,-532.67039341,0.0003,4]
[312846351,1706347841777,-696.7674007,0.0003,2]
[312846352,1706347841786,-3110.73706559,0.0003,4]
[312846354,1706347841795,-9657.29212585,0.0003,2]
[312846355,1706347841804,-830.76,0.00030002,2]
[312846357,1706347841814,-155.31,0.00030137,2]
[312846358,1706347841824,-304.58,0.00030301,2]
[312846359,1706347841834,-1192.0,0.00030301,2]
[312846360,1706347841845,-151.94880006,0.00030753,2]
[312846361,1706347841967,-153.13,0.00030822,2]
[312846362,1706347841981,-155.62368496,0.00031202,2]
[312846363,1706347841990,-349.78,0.00031253,2]
[312846364,1706347841999,-214.75625319,0.00031299,4]
[312846365,1706347842008,-671.81421461,0.000313,2]
[312846366,1706347842018,-913.52532653,0.00031301,4]
[312846367,1706347842028,-7301.85860037,0.00031301,4]
[312846368,1706347842037,-1424.58459089,0.00031302,2]
[312846369,1706347842046,-167.66,0.00031417,2]
[312846370,1706347842055,-1192.0,0.00031423,2]
[312846371,1706347842065,-206.0,0.0003155,9]
[312846372,1706347842074,-5257.91411578,0.0003155,14]
[312846373,1706347842084,-1000.0,0.000316,2]
[312846374,1706347842093,-180.0,0.00031644,2]
[312846375,1706347842102,-159.79188251,0.0003179,2]
[312846376,1706347842112,-310.44439571,0.00031799,2]
[312846377,1706347842121,-71631.32684576,0.000318,2]
[312846384,1706347843295,-19677.8746835,0.000318,2]
[312846385,1706347843307,-388.39049616,0.000318,2]
[312846386,1706347843318,-2037.31092658,0.000318,2]
[312846387,1706347843329,-415.28,0.000318,2]
[312846388,1706347843350,-666.5382313,0.000318,2]
[312846389,1706347843359,-600.85582946,0.0003199,2]
[312846390,1706347843371,-1015.73782321,0.0003199,2]
[312846391,1706347843449,-0.00888613,0.0003199,2]
[312846392,1706347843461,-945.08,0.0003199,2]
[312846393,1706347843473,-1120.75474578,0.0003199,2]
[312846394,1706347843485,-464.63935157,0.0003199,2]
[312846395,1706347843497,-313.93733363,0.0003199,2]
[312846396,1706347843516,-54.06799133,0.0003199,2]
[312846397,1706347843525,-255.32302767,0.0003199,14]
[312846398,1706347843537,-269.89100001,0.0003199,14]
[312846399,1706347843548,-427.76286142,0.0003199,14]
[312846400,1706347843561,-1789.09899512,0.0003199,14]
[312846401,1706347843570,-749.67689011,0.00032,2]
[312846402,1706347843579,-155.92820751,0.00032,4]
[312846403,1706347843588,-830.76,0.00032265,2]
[312846404,1706347843598,-634.66694592,0.00032288,3]
[312846405,1706347843607,-634.66694592,0.00032288,3]
[312846406,1706347843616,-4515.08196111,0.00032376,2]
[312846407,1706347843626,-4388.16607357,0.00032386,4]
[312846408,1706347843636,-377.32693414,0.00032386,2]
[312846409,1706347843646,-4515.08196111,0.00032387,2]
[312846410,1706347843655,-4515.08196111,0.0003239,2]
[312846411,1706347843665,-172.92570118,0.00032396,4]
[312846412,1706347843674,-11095.30888515,0.00032397,4]
[312846413,1706347843684,-2181.81685111,0.000324,2]
[312846414,1706347843693,-2181.81685097,0.000324,2]
[312846415,1706347843702,-2181.81685097,0.000324,2]
[312846416,1706347843713,-2181.81685097,0.000324,2]
[312846417,1706347843723,-1183.53932359,0.00032455,6]
[312846418,1706347843733,-312.17671248,0.000325,2]
[312846419,1706347843743,-1192.0,0.00032544,2]
[312846420,1706347843754,-800.0,0.00032736,3]
[312846421,1706347843765,-4515.08196111,0.00032758,3]
[312846422,1706347843774,-40.14569628,0.00032768,2]
[312846423,1706347843787,-1590.32321476,0.00032768,2]
[312846424,1706347843800,-275.16935946,0.00032768,2]
[312846425,1706347843812,-276.17858047,0.00032768,2]
[312846426,1706347843821,-153.13,0.00032877,2]
[312846427,1706347843830,-153.83,0.00032877,15]
[312846428,1706347843839,-126.03141953,0.00032877,2]
[312846429,1706347843863,-29.27858047,0.00032877,2]
[312846430,1706347843872,-166.89,0.00032877,2]
[312846431,1706347843880,-500.0,0.00032877,2]
[312846432,1706347843890,-221.69,0.00032877,2]
[312846433,1706347843899,-349.78,0.00032897,2]
[312846434,1706347843908,-1765.06752942,0.00033,4]
[312846435,1706347843917,-1000.0,0.00033151,2]
[312846436,1706347843926,-155.62368496,0.00033292,2]
[312846437,1706347843937,-1192.0,0.00033665,2]
[312846438,1706347843946,-2988.28244895,0.00033884,2]
[312846439,1706347843955,-4515.08196111,0.000339,5]
[312846440,1706347843964,-2181.81685097,0.00033911,2]
[312846441,1706347843974,-507.31895461,0.00034,4]
[312846442,1706347843982,-1223.28062569,0.00034,4]
[312846443,1706347843991,-830.76,0.00034529,2]
[312846444,1706347844001,-349.78,0.00034541,2]
[312846445,1706347844011,-1192.0,0.00034786,2]
[312846446,1706347844020,-505.96050048,0.000349,2]
[312846447,1706347844030,-505.96050046,0.000349,2]
[312846448,1706347844039,-155.0,0.00035,2]
[312846449,1706347844048,-631.69711414,0.00035,4]
[312846450,1706347844061,-631.79683257,0.00035,4]
[312846451,1706347844071,-643.22180001,0.00035043,7]
[312846452,1706347844081,-3871.8601611,0.00035043,7]
[312846453,1706347844091,-208.20230648,0.00035053,2]
[312846454,1706347844102,-1973.61454449,0.00035053,2]
[312846455,1706347844112,-155.62368496,0.00035382,2]
[312846456,1706347844121,-206.0,0.00035614,16]
[312846457,1706347844131,-155.31,0.00035616,2]
[312846458,1706347844140,-1844.53,0.00035754,5]
[312846459,1706347844149,-22575.4098055,0.00035814,8]
[312846460,1706347844159,-35248.08685274,0.00035824,15]
[312846461,1706347844169,-1879.76944772,0.00035824,15]
[312846462,1706347844178,-8006.19086202,0.00035824,15]
[312846463,1706347844187,-12043.71872272,0.00035824,15]
[312846464,1706347844197,-1000.0,0.00036,5]
[312846465,1706347844207,-505.96050046,0.00036024,2]
[312846466,1706347844216,-349.78,0.00036185,2]
[312846467,1706347844226,-2181.81685097,0.00036195,2]
[312846468,1706347844235,-246.1,0.00036301,2]
[312846469,1706347844245,-679.0,0.000365,6]
[312846470,1706347844255,-1183.53932359,0.00036709,8]
[312846471,1706347844264,-830.76,0.00036793,2]
[312846472,1706347844275,-4515.08196111,0.00036821,10]
[312846473,1706347844285,-1000.0,0.00036835,2]
[312846474,1706347844294,-1054.53,0.00036873,2]
[312846475,1706347844304,-176.61,0.000369,2]
[312846476,1706347844314,-153.83,0.00036986,15]
[312846477,1706347844324,-166.89,0.00036986,2]
[312846478,1706347844334,-312.64408967,0.00037,4]
[312846479,1706347844345,-150.0,0.00037,30]
[312846480,1706347844354,-1000.0,0.00037,6]
[312846481,1706347844362,-522.6083542,0.0003716,2]
[312846482,1706347844372,-150.0,0.000372,30]
[312846483,1706347844382,-500.0,0.0003726,2]
[312846484,1706347844394,-500.0,0.0003726,2]
[312846485,1706347844403,-500.0,0.0003726,2]
[312846486,1706347844412,-500.0,0.0003726,2]
[312846487,1706347844421,-500.0,0.0003726,2]
[312846488,1706347844430,-500.0,0.0003726,2]
[312846489,1706347844439,-500.0,0.0003726,2]
[312846490,1706347844447,-500.0,0.0003726,2]
[312846491,1706347844457,-500.0,0.0003726,2]
[312846492,1706347844466,-500.0,0.0003726,2]
[312846493,1706347844474,-500.0,0.0003726,2]
[312846494,1706347844483,-500.0,0.0003726,2]
[312846495,1706347844492,-500.0,0.0003726,2]
[312846496,1706347844501,-500.0,0.0003726,2]
[312846497,1706347844510,-500.0,0.0003726,2]
[312846498,1706347844519,-500.0,0.0003726,2]
[312846499,1706347844528,-500.0,0.0003726,2]
[312846500,1706347844537,-500.0,0.0003726,2]
[312846501,1706347844546,-500.0,0.0003726,2]
[312846502,1706347844555,-500.0,0.0003726,2]
[312846503,1706347844565,-500.0,0.0003726,2]
[312846504,1706347844573,-350.0,0.0003726,2]
[312846505,1706347844582,-500.0,0.0003726,2]
[312846506,1706347844591,-500.0,0.0003726,2]
[312846507,1706347844600,-500.0,0.0003726,2]
[312846508,1706347844609,-500.0,0.0003726,2]
[312846509,1706347844617,-500.0,0.0003726,2]
[312846510,1706347844627,-4515.08196111,0.00037327,10]
[312846511,1706347844636,-2181.81685097,0.00037337,2]
[312846512,1706347844645,-150.0,0.000374,30]
[312846513,1706347844654,-641.0,0.00037416,5]
[312846514,1706347844663,-176.61,0.00037448,2]
[312846515,1706347844672,-155.62368496,0.00037473,2]
[312846516,1706347844681,-150.0,0.000376,30]
[312846517,1706347844691,-7186.53744386,0.0003763,2]
[312846518,1706347844700,-577.70305488,0.000377,3]
[312846519,1706347844709,-4515.08196111,0.00037723,10]
[312846520,1706347844718,-150.0,0.00037732,2]
[312846521,1706347844727,-150.0,0.00037733,2]
[312846522,1706347844736,-153.15055908,0.00037736,2]
[312846523,1706347844745,-150.0,0.00037736,2]
[312846524,1706347844753,-150.0,0.00037741,2]
[312846525,1706347844762,-150.0,0.00037742,2]
[312846526,1706347844771,-306.51867598,0.00037749,2]
[312846527,1706347844780,-150.0,0.00037754,2]
[312846528,1706347844789,-150.0,0.00037758,2]
[312846529,1706347844798,-150.0,0.00037761,2]
[312846530,1706347844807,-150.0,0.00037767,2]
[312846531,1706347844816,-150.0,0.0003777,2]
[312846532,1706347844825,-150.0,0.00037774,2]
[312846533,1706347844834,-150.0,0.00037775,2]
[312846534,1706347844843,-150.0,0.00037777,2]
[312846535,1706347844853,-150.0,0.00037782,2]
[312846536,1706347844865,-150.0,0.00037786,2]
[312846537,1706347844875,-150.0,0.00037787,2]
[312846538,1706347844885,-150.0,0.00037789,2]
[312846539,1706347844895,-150.0,0.00037798,2]
[312846540,1706347844904,-150.0,0.00037799,2]
[312846541,1706347844912,-158.02607193,0.000378,30]
[312846542,1706347844921,-152.86212111,0.00037806,2]
[312846543,1706347844932,-150.0,0.00037812,2]
[312846544,1706347844940,-150.0,0.00037814,2]
[312846545,1706347844950,-150.0,0.00037815,2]
[312846546,1706347844959,-150.0,0.00037815,2]
[312846547,1706347844970,-150.0,0.00037818,2]
[312846548,1706347844979,-150.0,0.00037821,2]
[312846549,1706347844989,-150.0,0.00037822,2]
[312846550,1706347845000,-150.0,0.00037823,2]
[312846551,1706347845009,-150.0,0.00037827,2]
[312846552,1706347845018,-150.0,0.00037828,2]
[312846553,1706347845027,-150.0,0.00037828,2]
[312846554,1706347845037,-150.0,0.00037828,2]
[312846555,1706347845046,-349.78,0.00037829,2]
[312846556,1706347845054,-150.0,0.00037829,2]
[312846557,1706347845065,-150.0,0.00037835,2]
[312846558,1706347845075,-1500.0,0.00037836,2]
[312846559,1706347845085,-150.0,0.00037842,2]
[312846560,1706347845094,-150.0,0.00037845,2]
[312846561,1706347845103,-150.0,0.00037848,2]
[312846562,1706347845111,-150.0,0.00037853,2]
[312846563,1706347845121,-150.0,0.00037856,2]
[312846564,1706347845130,-150.0,0.00037859,2]
[312846565,1706347845141,-150.0,0.00037859,2]
[312846566,1706347845150,-150.0,0.0003786,2]
[312846567,1706347845160,-4515.08196111,0.00037863,10]
[312846568,1706347845169,-2647.77,0.00037873,2]
[312846569,1706347845178,-150.0,0.00037885,2]
[312846570,1706347845188,-1500.0,0.00037888,2]
[312846571,1706347845197,-150.0,0.00037888,2]
[312846572,1706347845206,-150.0,0.00037889,2]
[312846573,1706347845215,-150.0,0.00037889,2]
[312846574,1706347845225,-49665.9015722,0.0003789,10]
[312846575,1706347845233,-150.0,0.00037891,2]
[312846576,1706347845243,-268.54366828,0.00037897,2]
[312846577,1706347845253,-150.0,0.00037898,2]
[312846578,1706347845262,-523.53099998,0.00037899,4]
[312846579,1706347845271,-150.0,0.000379,2]
[312846580,1706347845281,-796.07454705,0.000379,2]
[312846581,1706347845290,-190422.601022,0.000379,2]
[312846582,1706347845299,-300.0,0.00037906,2]
[312846583,1706347845308,-150.0,0.00037907,2]
[312846584,1706347845317,-150.0,0.00037909,2]
[312846585,1706347845328,-150.0,0.00037911,2]
[312846586,1706347845338,-150.0,0.00037912,2]
[312846587,1706347845347,-150.0,0.00037918,2]
[312846588,1706347845357,-150.0,0.00037918,2]
[312846589,1706347845367,-150.0,0.00037921,2]
[312846590,1706347845376,-150.0,0.00037922,2]
[312846591,1706347845386,-150.0,0.00037934,2]
[312846592,1706347845395,-150.0,0.00037938,2]
[312846593,1706347845404,-505.96050046,0.00037941,2]
[312846594,1706347845414,-150.0,0.00037948,2]
[312846595,1706347845424,-150.0,0.00037949,2]
[312846596,1706347845434,-150.0,0.00037951,2]
[312846597,1706347845444,-150.0,0.00037962,2]
[312846598,1706347845454,-150.0,0.00037963,2]
[312846599,1706347845464,-150.0,0.00037966,2]
[312846600,1706347845474,-163.74,0.00037966,2]
[312846601,1706347845483,-153.01967497,0.00037981,2]
[312846602,1706347845493,-150.0,0.00037981,2]
[312846603,1706347845502,-176.61,0.00037996,2]
[312846604,1706347845512,-554.89384825,0.00037998,30]
[312846605,1706347845521,-150.01,0.00037999,2]
[312846606,1706347845531,-3301.0962401,0.00037999,2]
[312846607,1706347845540,-10924.3923336,0.00038,2]
[312846608,1706347845549,-500.0,0.00038,2]
[312846609,1706347845559,-155.0,0.00038,4]
[312846610,1706347845569,-3425.51805328,0.00038,5]
[312846611,1706347845580,-306.472067,0.00038,8]
[312846612,1706347845590,-3000.0,0.00038,2]
[312846613,1706347845599,-890.103426,0.00038,2]
[312846614,1706347845609,-500.0,0.00038,2]
[312846615,1706347845619,-4010.40236864,0.00038,2]
[312846616,1706347845628,-587.2926932,0.00038011,2]
[312846617,1706347845638,-399.1071877,0.00038014,2]
[312846618,1706347845648,-898.0804157,0.00038014,2]
[312846619,1706347845657,-1612.5500653,0.00038014,2]
[312846620,1706347845666,-18700.7010961,0.00038014,2]
[312846621,1706347845675,-271.1858553,0.00038014,2]
[312846622,1706347845685,-1386.6502944,0.00038014,2]
[312846623,1706347845794,-15800.1351428,0.0003804,2]
[312846624,1706347845805,-1823.73,0.00038118,5]
[312846625,1706347845814,-1003.40383443,0.00038279,2]
[312846626,1706347845823,-201.53161053,0.00038356,2]
[312846627,1706347845832,-155.31,0.00038356,2]
[312846628,1706347845841,-150.0,0.00038356,2]
[312846629,1706347845851,-500.0,0.00038356,13]
[312846630,1706347845863,-500.0,0.00038356,13]
[312846631,1706347845872,-500.0,0.00038356,13]
[312846632,1706347845881,-572.0,0.00038356,13]
[312846633,1706347845891,-1844.81,0.00038356,5]
[312846634,1706347845903,-622.62568775,0.00038398,2]
[312846635,1706347845913,-2181.81685097,0.00038479,2]
[312846636,1706347845922,-176.61,0.00038544,2]
[312846637,1706347845932,-281.45241537,0.0003888,2]
[312846638,1706347845943,-281.45241537,0.0003888,2]
[312846639,1706347845953,-281.45241537,0.0003888,2]
[312846640,1706347845964,-281.45241537,0.0003888,2]
[312846641,1706347845974,-282.4270994,0.0003898,2]
[312846642,1706347845983,-1283.11356176,0.00039,2]
[312846643,1706347845992,-150.0,0.00039,2]
[312846644,1706347846001,-1430.80823834,0.00039,2]
[312846645,1706347846010,-688.576499,0.00039,2]
[312846646,1706347846020,-830.76,0.00039057,2]
[312846647,1706347846029,-176.61,0.00039092,2]
[312846648,1706347846039,-171.91,0.0003926,2]
[312846649,1706347846048,-11045.0,0.00039451,2]
[312846650,1706347846058,-150.77298008,0.00039548,2]
[312846651,1706347846067,-155.62368496,0.00039563,2]
[312846652,1706347846076,-2181.81685097,0.00039621,2]
[312846653,1706347846085,-352.49,0.0003964,2]
[312846654,1706347846094,-206.0,0.00039679,23]
[312846655,1706347846103,-577.69,0.000397,4]
[312846656,1706347846113,-150.0,0.00039726,2]
[312846657,1706347846122,-182.69,0.00039726,2]
[312846659,1706347846131,-150.0,0.00039726,2]
[312846660,1706347846140,-259.94,0.00039726,2]
[312846661,1706347846150,-295.04,0.00039726,2]
[312846662,1706347846159,-150.0,0.00039726,2]
[312846663,1706347846168,-295.04,0.00039726,2]
[312846664,1706347846177,-150.0,0.00039726,2]
[312846665,1706347846187,-295.04,0.00039726,2]
[312846666,1706347846196,-150.0,0.00039726,2]
[312846667,1706347846205,-150.0,0.00039726,2]
[312846668,1706347846215,-295.04,0.00039726,2]
[312846669,1706347846225,-150.0,0.00039726,2]
[312846670,1706347846234,-150.0,0.00039726,2]
[312846671,1706347846243,-222.87,0.00039726,2]
[312846672,1706347846253,-150.0,0.00039726,2]
[312846673,1706347846262,-150.0,0.00039726,2]
[312846674,1706347846271,-505.96050046,0.00039858,2]
[312846675,1706347846280,-95211.3005112,0.00039989,5]
[312846676,1706347846289,-2622.64497432,0.00039998,2]
[312846677,1706347846298,-212.64591614,0.00039998,4]
[312846678,1706347846307,-155.0,0.00039998,2]
[312846679,1706347846316,-155.88650894,0.00039999,4]
[312846680,1706347846326,-345.68529376,0.00039999,4]
[312846681,1706347846334,-262.32693477,0.00039999,4]
[312846682,1706347846344,-5038.93139283,0.00039999,4]
[312846683,1706347846354,-610.59277576,0.0004,4]
[312846684,1706347846363,-800.00863621,0.0004,60]
[312846685,1706347846372,-421.494444,0.0004,15]
[312846686,1706347846381,-1360.42383885,0.0004,10]
[312846687,1706347846390,-569.12017158,0.0004,2]
[312846688,1706347846399,-67713.8481453,0.0004,7]
[312846689,1706347846408,-17150.0,0.0004,30]
[312846690,1706347846417,-1000.0,0.0004,10]
[312846691,1706347846427,-963.7454001,0.0004,2]
[312846692,1706347846435,-155.52227835,0.0004,2]
[312846693,1706347846445,-1000.0,0.000403,30]
[312846694,1706347846454,-1000.0,0.00040518,2]
[312846695,1706347846463,-150.0,0.00040548,2]
[312846696,1706347846472,-150.0,0.00040548,2]
[312846697,1706347846481,-150.0,0.00040548,2]
[312846698,1706347846491,-150.0,0.00040548,2]
[312846699,1706347846499,-150.0,0.00040548,2]